bitfinex-derivatives/quotes_BNBF0:USTF0_20260110
["timestamp","ask_amount","ask_price","bid_price","bid_amount"]
[1768061195171,3.06982504,910.14,908.03,0.82059004]
[1768061195472,3.06982504,910.14,908.04,0.82059004]
[1768061196170,3.06982504,910.14,908.05,2.053]
[1768061196369,3.06982504,910.14,908.05,2.87359004]
[1768061197373,3.06982504,910.14,908.06,0.82059004]
[1768061197775,5.81692744,910.14,908.06,0.82059004]
[1768061198475,5.81692744,910.14,908.07,0.82059004]
[1768061198775,2.7471024,910.13,908.07,0.82059004]
[1768061199477,2.7471024,910.13,908.08,0.82059004]
[1768061199772,2.7471024,910.11,908.08,0.82059004]
[1768061200375,2.7471024,910.11,908.09,0.82059004]
[1768061200772,2.7471024,910.1,908.09,0.82059004]
[1768061201377,2.7471024,910.1,908.1,0.82059004]
[1768061201876,2.7471024,910.09,908.1,0.82059004]
[1768061202478,2.7471024,910.09,908.11,0.82059004]
[1768061203577,2.7471024,910.08,908.12,0.82059004]
[1768061204377,2.7471024,910.08,908.05,2.053]
[1768061204582,2.7471024,909.99,908.05,2.053]
[1768061207082,2.7471024,909.95,908.05,2.053]
[1768061207589,2.7471024,909.97,908.05,2.053]
[1768061208088,2.7471024,909.98,908.05,2.053]
[1768061208689,2.7471024,909.99,908.05,2.053]
[1768061209586,2.7471024,910.01,908.05,2.053]
[1768061218391,2.7471024,910.0,908.05,2.053]
[1768061219090,2.7471024,909.97,908.05,2.053]
[1768061224100,2.7471024,909.9,908.05,2.053]
[1768061226697,2.7471024,909.97,908.05,2.053]
[1768061227295,2.7471024,910.02,908.05,2.053]
[1768061227797,2.7471024,910.06,908.08,0.82059004]
[1768061227999,2.7471024,910.06,908.12,0.82059004]
[1768061228501,2.7471024,910.13,908.15,0.82059004]
[1768061228801,2.7471024,910.12,908.15,0.82059004]
[1768061231205,2.7471024,910.12,908.16,0.82059004]
[1768061233600,2.7471024,910.11,908.16,0.82059004]
[1768061234204,2.7471024,910.11,908.17,0.82059004]
[1768061236606,0.19131338,910.14,908.17,0.82059004]
[1768061236607,2.7471024,910.1,908.17,0.82059004]
[1768061237303,2.7471024,910.1,908.18,0.82059004]
[1768061238606,2.7471024,910.09,908.18,0.82059004]
[1768061240712,2.7471024,910.1,908.18,0.82059004]
[1768061242210,2.7471024,910.1,908.19,1.887]
[1768061262622,2.7471024,910.08,908.19,1.887]
[1768061264726,2.7471024,910.07,908.19,1.887]
[1768061266226,2.7471024,910.01,908.19,1.887]
[1768061266831,2.7471024,909.88,908.19,1.887]
[1768061267728,2.7471024,909.8,908.19,1.887]
[1768061268734,2.7471024,909.81,908.19,1.887]
[1768061269435,2.7471024,909.8,908.19,1.887]
[1768061270837,2.7471024,909.81,908.19,1.887]
[1768061272836,2.7471024,909.82,908.19,1.887]
[1768061273335,2.7471024,909.83,908.19,1.887]
[1768061274333,2.7471024,909.84,908.19,1.887]
[1768061275536,2.7471024,909.85,908.19,1.887]
[1768061277639,2.7471024,909.86,908.19,1.887]
[1768061278641,0.19147286,909.45,908.19,1.887]
[1768061296360,0.19147286,909.45,907.79,0.82059004]
[1768061298165,0.19147286,909.45,907.8,0.82059004]
[1768061298964,0.19147286,909.45,907.8,4.95256438]
[1768061299562,0.19147286,909.45,907.81,1.615]
[1768061300368,0.19147286,909.45,907.81,2.43559004]
[1768061302370,0.19147286,909.45,907.82,0.82059004]
[1768061303365,0.19147286,909.45,907.83,0.82059004]
[1768061305171,0.19147286,909.45,907.84,0.82059004]
[1768061306372,0.19147286,909.45,907.85,0.82059004]
[1768061307171,0.19147286,909.45,907.87,0.82059004]
[1768061307370,0.19147286,909.45,907.88,0.82059004]
[1768061307772,0.19147286,909.45,907.89,0.82059004]
[1768061308474,0.19147286,909.45,907.9,0.82059004]
[1768061309473,0.19147286,909.45,907.92,0.82059004]
[1768061310375,0.19147286,909.45,907.94,0.82059004]
[1768061311374,0.19147286,909.45,907.97,0.82059004]
[1768061312471,0.19147286,909.45,907.98,0.82059004]
[1768061314276,0.19147286,909.45,907.98,0.82294936]
[1768061314776,0.19147286,909.45,907.96,0.82294936]
[1768061320278,0.19147286,909.45,907.97,1.69]
[1768061333499,0.19147286,909.45,907.97,2.51294936]
[1768061346208,0.19147286,909.45,907.97,0.82294936]
[1768061348804,0.19147286,909.45,907.96,0.82294936]
[1768061350409,0.19147286,909.45,907.97,1.939]
[1768061363426,0.19147286,909.45,907.96,0.82294936]
[1768061367328,0.19147286,909.45,907.97,2.397]
[1768061376230,0.19147286,909.45,907.97,3.21994936]
[1768061399047,0.19147286,909.45,907.98,0.82294936]
[1768061407150,0.19147286,909.45,908.01,0.82294936]
[1768061407347,0.19147286,909.45,908.15,0.82294936]
[1768061407551,0.19147286,909.45,908.16,0.82294936]
[1768061408146,0.19147286,909.45,908.22,0.82294936]
[1768061408351,0.19147286,909.45,908.27,0.82294936]
[1768061409353,0.19147286,909.45,908.24,0.82294936]
[1768061410054,0.19147286,909.45,908.26,0.82294936]
[1768061410349,0.19147286,909.45,908.24,0.82294936]
[1768061411251,0.19147286,909.45,908.23,0.82294936]
[1768061411451,0.19147286,909.45,908.22,0.82294936]
[1768061411755,0.19147286,909.45,908.25,0.82294936]
[1768061412454,0.19147286,909.45,908.23,0.82294936]
[1768061412951,0.19147286,909.45,908.22,0.82294936]
[1768061413354,0.19147286,909.45,908.2,0.82294936]
[1768061414352,0.19147286,909.45,908.19,0.82294936]
[1768061415452,0.19147286,909.45,908.18,0.82294936]
[1768061416457,0.19147286,909.45,908.17,0.82294936]
[1768061416652,0.19147286,909.45,908.16,0.82294936]
[1768061417359,0.19147286,909.45,908.15,0.82294936]
[1768061419360,0.19147286,909.45,908.14,0.82294936]
[1768061421358,0.19147286,909.45,908.13,0.82294936]
[1768061422664,0.19147286,909.45,908.13,4.8956478]
[1768061424364,0.19147286,909.45,908.13,4.07269844]
[1768061425366,0.19147286,909.45,908.14,1.775]
[1768061426465,0.19147286,909.45,908.14,2.59794936]
[1768061427365,0.19147286,909.45,908.14,1.775]
[1768061427964,0.19147286,909.45,908.14,2.59794936]
[1768061435273,0.19147286,909.45,908.15,0.82294936]
[1768061438371,0.19147286,909.45,908.14,1.775]
[1768061440276,0.19147286,909.45,908.14,2.59794936]
[1768061442277,0.19147286,909.45,908.15,0.82294936]
[1768061443377,0.19147286,909.45,908.16,0.82294936]
[1768061444273,0.19147286,909.45,908.17,0.82294936]
[1768061446376,0.19147286,909.45,908.18,0.82294936]
[1768061447278,0.19147286,909.45,908.19,0.82294936]
[1768061447478,0.19147286,909.45,908.2,0.82294936]
[1768061448383,0.19147286,909.45,908.22,0.82294936]
[1768061449484,0.19147286,909.45,908.24,0.82294936]
[1768061450485,0.19147286,909.45,908.26,0.82294936]
[1768061451384,0.19147286,909.45,908.3,0.82294936]
[1768061452488,0.19147286,909.45,908.33,0.82294936]
[1768061455891,0.19147286,909.45,908.35,0.82294936]
[1768061473305,0.19147286,909.45,908.36,0.82294936]
[1768061475007,0.19147286,909.45,908.35,0.82294936]
[1768061476211,0.19147286,909.45,908.36,0.82294936]
[1768061477113,0.19147286,909.45,908.35,0.82294936]
[1768061478212,0.19147286,909.45,908.36,0.82294936]
[1768061478510,0.19147286,909.45,908.35,0.82294936]
[1768061478713,2.7471024,910.12,908.35,0.82294936]
[1768061478914,0.19140756,909.28,908.35,0.82294936]
[1768061479214,2.8738231,909.52,908.35,0.82294936]
[1768061479414,0.19140756,909.28,908.35,0.82294936]
[1768061485415,0.19140756,909.28,908.36,0.82294936]
[1768061487915,0.19140756,909.28,908.35,0.82294936]
[1768061489122,0.19140756,909.28,908.23,1.755]
[1768061489422,0.19140756,909.28,908.35,0.82435303]
[1768061495426,0.19140756,909.28,908.36,0.82435303]
[1768061497226,0.19140756,909.28,908.23,1.755]
[1768061497927,0.19140756,909.28,908.36,0.82459559]
[1768061499124,0.19140756,909.28,908.23,1.755]
[1768061501325,0.19140756,909.28,908.37,0.82578687]
[1768061548066,0.19140756,909.28,908.36,0.82578687]
[1768061553072,0.19140756,909.28,908.37,0.82578687]
[1768061556671,0.19140756,909.28,908.35,0.82578687]
[1768061558473,0.19140756,909.28,908.34,0.82578687]
[1768061559176,0.19140756,909.28,908.33,0.82578687]
[1768061565177,0.19140756,909.28,908.32,0.82578687]
[1768061570686,0.19140756,909.28,908.27,4.98210111]
[1768061570980,0.19140756,909.28,908.27,4.15631424]
[1768061575389,0.19140756,909.28,908.28,1.84]
[1768061588500,2.8738231,909.52,908.28,1.84]
[1768061588797,0.1914302,909.4,908.28,2.66578687]
[1768061588995,0.1914302,909.4,908.29,0.82578687]
[1768061590598,2.8738231,909.52,908.44,0.82578687]
[1768061590796,2.8738231,909.52,908.46,0.82578687]
[1768061590998,0.19142019,909.49,908.47,0.82578687]
[1768061591201,0.19142019,909.49,908.46,0.82578687]
[1768061592205,0.19142019,909.49,908.45,0.82578687]
[1768061592401,0.19142019,909.49,908.44,0.82578687]
[1768061593302,0.19142019,909.49,908.43,0.82578687]
[1768061594307,0.19142019,909.49,908.42,0.82578687]
[1768061596207,0.19142019,909.49,908.41,0.82578687]
[1768061597206,0.19142019,909.49,908.4,0.82578687]
[1768061598610,0.19142019,909.49,908.39,0.82578687]
[1768061598810,0.19142019,909.49,908.41,2.38]
[1768061636743,0.19142019,909.49,907.87,0.82578687]
[1768061637243,0.19142019,909.49,907.88,0.82578687]
[1768061640347,0.19142019,909.49,907.89,2.345]
[1768061641147,0.19142019,909.49,907.89,3.17078687]
[1768061642447,0.19142019,909.49,907.9,0.82578687]
[1768061644251,0.19142019,909.49,907.91,0.82578687]
[1768061645250,0.19142019,909.49,907.92,0.82578687]
[1768061646153,0.19142019,909.49,907.93,0.82578687]
[1768061646651,0.19142019,909.49,907.92,0.82578687]
[1768061647152,0.19142019,909.49,907.93,0.82578687]
[1768061648352,0.19142019,909.49,907.94,0.82578687]
[1768061649255,0.19142019,909.49,907.96,0.82578687]
[1768061650258,0.19142019,909.49,907.98,0.82578687]
[1768061651359,0.19142019,909.49,908.0,0.82578687]
[1768061652455,0.19142019,909.49,908.03,0.82578687]
[1768061653161,0.19142019,909.49,908.04,0.82578687]
[1768061655259,0.19142019,909.49,908.05,0.82578687]
[1768061657365,0.19142019,909.49,908.06,0.82578687]
[1768061658464,0.19142019,909.49,908.07,0.82578687]
[1768061659159,0.19142019,909.49,907.89,2.345]
[1768061659160,0.19142019,909.49,908.09,0.82578687]
[1768061667168,0.19142019,909.49,908.1,0.82578687]
[1768061673176,0.19142019,909.49,908.11,0.82578687]
[1768061690887,0.19142019,909.49,908.12,2.398]
[1768061696191,0.19142019,909.49,908.13,0.82578687]
[1768061696391,0.19142019,909.49,908.29,0.82578687]
[1768061696589,0.19142019,909.49,908.33,0.82578687]
[1768061697188,0.19142019,909.49,908.35,0.82578687]
[1768061697391,0.19142019,909.49,908.32,0.82578687]
[1768061697587,0.19142019,909.49,908.34,0.82578687]
[1768061698288,0.19142019,909.49,908.18,1.10104916]
[1768061698289,0.19142019,909.49,908.32,0.82578687]
[1768061699293,0.19142019,909.49,908.31,0.82578687]
[1768061701095,0.19142019,909.49,908.3,0.82578687]
[1768061702191,0.19142019,909.49,908.29,0.82578687]
[1768061703096,0.19142019,909.49,908.28,0.82578687]
[1768061704096,0.19142019,909.49,908.27,0.82578687]
[1768061705303,0.19142019,909.49,908.34,0.82578687]
[1768061706304,0.19142019,909.49,908.33,0.82578687]
[1768061707303,0.19142019,909.49,908.16,1.10104916]
[1768061707304,0.19142019,909.49,908.32,0.82578687]
[1768061708302,0.00925209,910.19,908.35,0.82578687]
[1768061708502,0.00925209,910.19,908.47,0.82578687]
[1768061708806,0.19136388,909.65,908.48,0.82578687]
[1768061709004,2.82726801,909.79,908.48,0.82578687]
[1768061709203,0.19134284,909.7,908.47,0.82578687]
[1768061709402,0.19134284,909.7,908.46,0.82578687]
[1768061710002,0.19134284,909.7,908.47,0.82578687]
[1768061710203,0.19134284,909.7,908.46,0.82578687]
[1768061711103,0.19134284,909.7,908.45,0.82578687]
[1768061712103,0.19134284,909.7,908.44,0.82578687]
[1768061712602,0.19134284,909.7,908.5,0.82578687]
[1768061713105,0.19134284,909.7,908.49,0.82578687]
[1768061713305,0.19134284,909.7,908.48,0.82578687]
[1768061714308,0.19134284,909.7,908.47,0.82578687]
[1768061715207,0.19134284,909.7,908.46,0.82578687]
[1768061715412,0.19134284,909.7,908.45,0.82578687]
[1768061716512,0.19134284,909.7,908.44,0.82578687]
[1768061717309,0.19134284,909.7,908.43,0.82578687]
[1768061719210,0.19134284,909.7,908.42,0.82578687]
[1768061720213,0.19134284,909.7,908.41,0.82578687]
[1768061722111,0.19134284,909.7,908.24,1.10104916]
[1768061722112,0.19134284,909.7,908.4,0.82578687]
[1768061723210,0.19134284,909.7,908.39,0.82578687]
[1768061726811,0.19134284,909.7,908.36,0.82578687]
[1768061727316,0.19134284,909.7,908.37,0.82578687]
[1768061727617,0.19134284,909.7,908.38,0.82578687]
[1768061729318,0.19134284,909.7,908.39,0.82578687]
[1768061731322,0.19134284,909.7,908.4,0.82578687]
[1768061732318,0.19134284,909.7,908.41,0.82578687]
[1768061733019,0.19134284,909.7,908.4,0.82578687]
[1768061733324,0.19134284,909.7,908.41,0.82578687]
[1768061734324,0.19134284,909.7,908.42,0.82578687]
[1768061734724,0.19134284,909.7,908.56,0.82578687]
[1768061735025,2.82726801,909.79,908.64,0.82578687]
[1768061735225,2.82726801,909.79,908.74,0.82578687]
[1768061735825,4.62983594,910.97,908.76,0.82578687]
[1768061736022,4.62983594,910.97,908.87,0.82578687]
[1768061736222,0.19131812,910.15,908.77,0.82578687]
[1768061736425,4.62983594,910.97,908.75,0.82578687]
[1768061736626,0.19126081,910.45,908.75,0.82578687]
[1768061736827,0.19126081,910.45,908.73,0.82578687]
[1768061737127,0.19126081,910.45,908.7,0.82578687]
[1768061737422,0.19126081,910.45,908.72,0.82578687]
[1768061738223,0.19126081,910.45,908.69,0.82578687]
[1768061738423,0.19126081,910.45,908.71,0.82578687]
[1768061739126,0.19126081,910.45,908.68,0.82578687]
[1768061739328,0.19126081,910.45,908.69,0.82578687]
[1768061740328,0.19126081,910.45,908.7,0.82578687]
[1768061741530,0.19126081,910.45,908.71,0.82578687]
[1768061743430,0.19126081,910.45,908.7,0.82578687]
[1768061746530,0.19126081,910.45,908.71,0.82578687]
[1768061748130,0.19126081,910.45,908.72,0.82578687]
[1768061749037,0.19126081,910.45,908.73,0.82578687]
[1768061749233,0.19126081,910.45,908.73,2.97478687]
[1768061750138,0.19126081,910.45,908.74,0.82578687]
[1768061751236,0.19126081,910.45,908.75,0.82578687]
[1768061751837,0.19126081,910.45,908.73,2.149]
[1768061753332,0.19126081,910.45,908.73,2.97478687]
[1768061755334,0.19126081,910.45,908.74,0.82578687]
[1768061757637,0.19126081,910.45,908.73,2.97478687]
[1768061764145,0.19126081,910.45,908.74,0.82578687]
[1768061768046,0.19126081,910.45,908.75,0.82578687]
[1768061769148,0.19126081,910.45,908.73,2.149]
[1768061776153,0.19126081,910.45,908.73,2.97478687]
[1768061778157,0.19126081,910.45,908.74,0.82578687]
[1768061779252,0.19126081,910.45,908.69,0.82578687]
[1768061780857,0.19126081,910.45,908.7,1.624]
[1768061781053,0.19126081,910.45,908.7,2.44978687]
[1768061784952,0.19126081,910.45,908.7,1.624]
[1768061785153,2.7555067,910.41,908.7,1.624]
[1768061786855,2.7555067,910.38,908.7,1.624]
[1768061787260,2.7555067,910.4,908.7,1.624]
[1768061788460,2.7555067,910.41,908.7,1.624]
[1768061788860,2.7555067,910.4,908.7,1.624]
[1768061789361,2.7555067,910.41,908.7,1.624]
[1768061790460,2.7555067,910.42,908.7,1.624]
[1768061791463,2.7555067,910.43,908.7,1.624]
[1768061792663,2.7555067,910.44,908.7,1.624]
[1768061794568,2.7555067,910.43,908.7,1.624]
[1768061796666,2.7555067,910.39,908.7,1.624]
[1768061797171,0.19126081,910.45,908.7,1.624]
[1768061797172,2.7555067,910.4,908.7,1.624]
[1768061799374,2.7555067,910.41,908.7,1.624]
[1768061803476,2.7555067,910.4,908.7,1.624]
[1768061808084,2.7555067,910.36,908.7,1.624]
[1768061811187,2.7555067,910.27,908.7,1.624]
[1768061812289,2.7555067,910.28,908.7,1.624]
[1768061813288,2.7555067,910.27,908.7,1.624]
[1768061814288,2.7555067,910.28,908.7,1.624]
[1768061815890,2.7555067,910.25,908.7,1.624]
[1768061817487,2.7555067,910.24,908.7,1.624]
[1768061818390,2.7555067,910.23,908.7,1.624]
[1768061819993,2.7555067,910.2,908.7,1.624]
[1768061820489,2.7555067,910.18,908.7,1.624]
[1768061822095,2.7555067,910.17,908.7,1.624]
[1768061823192,2.7555067,910.14,908.7,1.624]
[1768061825197,2.7555067,910.13,908.7,1.624]
[1768061825696,2.7555067,910.14,908.7,1.624]
[1768061826298,2.7555067,910.13,908.7,1.624]
[1768061828301,2.7555067,910.12,908.7,1.624]
[1768061829499,2.7555067,910.11,908.7,1.624]
[1768061834102,2.7555067,909.89,908.7,1.624]
[1768061834503,2.7555067,909.91,907.85,0.82578687]
[1768061834703,2.7555067,909.91,907.83,0.82578687]
[1768061835102,2.7555067,909.89,907.83,0.82578687]
[1768061835402,2.7555067,909.89,907.82,0.82578687]
[1768061835601,2.7555067,909.9,907.82,0.82578687]
[1768061836305,2.7555067,909.9,907.81,0.82578687]
[1768061836602,2.7555067,909.91,907.81,0.82578687]
[1768061837204,2.7555067,909.91,907.8,0.82578687]
[1768061837506,2.7555067,909.91,907.82,2.013]
[1768061837706,2.7555067,909.92,907.82,2.013]
[1768061838706,2.7555067,909.93,907.82,2.013]
[1768061839808,2.7555067,909.92,907.82,2.013]
[1768061841407,2.7555067,909.93,907.82,2.013]
[1768061842808,2.7555067,909.79,907.82,2.013]
[1768061843511,2.7555067,909.8,907.82,2.013]
[1768061844511,2.7555067,909.81,907.82,2.013]
[1768061846611,2.7555067,909.82,907.82,2.013]
[1768061849412,2.7555067,909.82,907.58,6.64138481]
[1768061849615,2.7555067,909.83,907.58,6.64138481]
[1768061851118,2.7555067,909.82,907.58,6.64138481]
[1768061851714,2.7555067,909.83,907.58,6.64138481]
[1768061852214,2.7555067,909.82,907.58,6.64138481]
[1768061853115,2.7555067,909.82,907.59,1.935]
[1768061855423,2.7555067,909.81,907.59,1.935]
[1768061859431,2.7555067,909.8,907.59,1.935]
[1768061860131,2.7555067,909.8,907.59,2.76078687]
[1768061860328,2.7555067,909.8,907.59,1.935]
[1768061861128,2.7555067,909.8,907.59,2.76078687]
[1768061861432,0.19150763,909.25,907.59,2.76078687]
[1768061863134,0.19150763,909.25,907.6,0.82578687]
[1768061864134,0.19150763,909.25,907.61,0.82578687]
[1768061867235,0.19150763,909.25,907.62,0.82578687]
[1768061869337,0.19150763,909.25,907.63,0.82578687]
[1768061870239,0.19150763,909.25,907.64,0.82578687]
[1768061871335,0.19150763,909.25,907.65,0.82578687]
[1768061871739,0.19150763,909.25,907.61,0.82578687]
[1768061872338,0.19150763,909.25,907.62,0.82578687]
[1768061873336,0.19150763,909.25,907.63,0.82578687]
[1768061873840,0.19150763,909.25,907.61,0.82578687]
[1768061874040,0.19150763,909.25,907.6,0.82578687]
[1768061874239,0.19150763,909.25,907.61,0.82578687]
[1768061874436,0.19150763,909.25,907.59,1.935]
[1768061876238,0.19150763,909.25,907.59,2.76078687]
[1768061877242,0.19150763,909.25,907.6,0.82578687]
[1768061878237,0.19150763,909.25,907.62,0.82578687]
[1768061879343,0.19150763,909.25,907.63,0.82578687]
[1768061881244,0.19150763,909.25,907.65,0.82578687]
[1768061882043,0.19150763,909.25,907.71,0.82578687]
[1768061882246,0.19150763,909.25,907.73,0.82578687]
[1768061883241,0.19150763,909.25,907.74,0.82578687]
[1768061884542,0.19150763,909.25,907.75,0.82578687]
[1768061886346,0.19150763,909.25,907.76,0.82578687]
[1768061887248,0.19150763,909.25,907.77,0.82578687]
[1768061897250,0.19150763,909.25,907.79,0.82578687]
[1768061900454,0.19150763,909.25,907.79,4.92101952]
[1768061904154,0.19150763,909.25,907.8,2.133]
[1768061917469,2.7555067,909.17,907.8,2.133]
[1768061917967,2.7555067,909.13,907.8,2.133]
[1768061918572,2.7555067,909.16,907.8,2.133]
[1768061919576,2.7555067,909.19,907.8,2.133]
[1768061920073,2.7555067,909.22,907.8,2.133]
[1768061920678,2.7555067,909.24,907.8,2.133]
[1768061921681,0.19150763,909.25,907.8,2.133]
[1768061922682,2.7555067,909.21,907.8,2.133]
[1768061923779,2.7555067,909.23,907.8,2.133]
[1768061924782,2.94701433,909.25,907.8,2.133]
[1768061925787,0.19150763,909.25,907.8,2.133]
[1768061950207,0.19150763,909.25,907.21,0.82578687]
[1768061951312,0.19150763,909.25,907.22,0.82578687]
[1768061951912,0.19150763,909.25,907.32,0.82578687]
[1768061952813,0.19150763,909.25,907.33,1.72]
[1768061953416,0.19150763,909.25,907.33,2.54578687]
[1768061954312,0.19150763,909.25,907.34,0.82578687]
[1768061956418,0.19150763,909.25,907.35,0.82578687]
[1768061957318,0.19150763,909.25,907.36,0.82578687]
[1768061958519,0.19150763,909.25,907.37,0.82578687]
[1768061959418,0.19150763,909.25,907.38,0.82578687]
[1768061960420,0.19150763,909.25,907.39,0.82578687]
[1768061961320,0.19150763,909.25,907.4,0.82578687]
[1768061962320,0.19150763,909.25,907.39,0.82578687]
[1768061962620,0.19150763,909.25,907.4,0.82578687]
[1768061966522,0.19150763,909.25,907.38,0.82578687]
[1768061967724,0.19150763,909.25,907.36,0.82578687]
[1768061968025,0.19150763,909.25,907.35,0.82578687]
[1768061969423,0.19150763,909.25,907.33,1.72]
[1768061969622,2.94701433,909.25,907.33,1.72]
[1768061972819,2.7555067,909.24,907.33,1.72]
[1768061977927,2.7555067,909.23,907.33,1.72]
[1768061978426,2.7555067,909.19,907.33,1.72]
[1768061983128,2.7555067,909.15,907.33,1.72]
[1768061986230,2.7555067,909.14,907.33,1.72]
[1768061986729,2.7555067,909.05,907.33,1.72]
[1768061987429,2.7555067,909.06,907.33,1.72]
[1768061988425,2.7555067,909.07,907.33,1.72]
[1768061990430,2.7555067,909.08,907.33,1.72]
[1768061993532,2.7555067,909.09,907.33,1.72]
[1768061995629,2.7555067,909.1,907.33,1.72]
[1768062000836,2.7555067,909.17,907.33,1.72]
[1768062001434,0.19150763,909.25,907.33,1.72]
[1768062002437,2.94701433,909.25,907.33,1.72]
[1768062004538,2.7555067,909.24,907.33,1.72]
[1768062005137,2.7555067,909.23,907.33,1.72]
[1768062006544,2.7555067,909.22,907.33,1.72]
[1768062008745,0.19150763,909.25,907.39,0.82578687]
[1768062008946,0.19150763,909.25,907.4,0.82578687]
[1768062009242,0.19150763,909.25,907.41,0.82578687]
[1768062010247,0.19150763,909.25,907.42,0.82578687]
[1768062010447,0.19150763,909.25,907.41,0.82578687]
[1768062012645,0.19150763,909.25,907.42,2.131]
[1768062018050,2.7555067,909.26,907.42,2.131]
[1768062018554,0.19160833,908.81,907.42,2.131]
[1768062018854,3.07578606,908.81,907.42,2.131]
[1768062027358,2.88417773,908.81,907.42,2.131]
[1768062027657,0.19163629,908.47,907.42,2.131]
[1768062028557,2.88417773,908.81,907.42,2.131]
[1768062028958,0.19163629,908.24,907.42,2.131]
[1768062029158,2.88417773,908.81,907.42,2.131]
[1768062030359,0.19164684,908.47,907.42,2.131]
[1768062047680,2.88417773,908.81,907.42,2.131]
[1768062047880,2.88417773,908.81,907.58,0.82409548]
[1768062048075,0.19159303,908.65,907.59,0.82409548]
[1768062048278,0.19159303,908.65,907.58,0.82409548]
[1768062048776,0.19159303,908.65,907.64,0.82409548]
[1768062049280,0.19159303,908.65,907.61,0.82409548]
[1768062049481,0.19159303,908.65,907.6,0.82409548]
[1768062050281,0.19159303,908.65,907.58,0.82409548]
[1768062051383,0.19159303,908.65,907.6,0.82409548]
[1768062052484,0.19159303,908.65,907.59,0.82409548]
[1768062053381,0.19159303,908.65,907.58,0.82409548]
[1768062054384,0.19159303,908.65,907.57,0.82409548]
[1768062055285,0.19159303,908.65,907.42,2.131]
[1768062055286,0.19159303,908.65,907.56,0.82409548]
[1768062056284,0.19159303,908.65,907.55,0.82409548]
[1768062056784,0.19159303,908.65,907.48,0.82409548]
[1768062057389,0.19159303,908.65,907.47,0.82409548]
[1768062059588,0.19159303,908.65,907.42,2.131]
[1768062059788,0.19159303,908.65,907.47,0.82144769]
[1768062060289,0.19159303,908.65,907.46,0.82144769]
[1768062060485,0.19159303,908.65,907.46,4.9591999]
[1768062060689,0.19159303,908.65,907.46,4.13775221]
[1768062064194,0.19159303,908.65,907.47,1.716]
[1768062078693,0.19159303,908.65,907.57,0.82144769]
[1768062080398,0.19159303,908.65,907.58,0.82144769]
[1768062082300,0.19159303,908.65,907.59,0.82144769]
[1768062083398,0.19159303,908.65,907.6,0.82144769]
[1768062086002,0.19159303,908.65,907.63,0.82144769]
[1768062087205,0.19159303,908.65,907.62,0.82144769]
[1768062087805,0.19159303,908.65,907.59,0.82144769]
[1768062088201,0.19159303,908.65,907.58,0.82144769]
[1768062089404,0.19159303,908.65,907.57,0.82144769]
[1768062091206,0.19159303,908.65,907.56,0.82144769]
[1768062091805,0.19159303,908.65,907.46,4.13775221]
[1768062093401,0.19159303,908.65,907.59,0.82144769]
[1768062093601,0.19159303,908.65,907.54,0.82144769]
[1768062095207,0.19159303,908.65,907.55,0.82144769]
[1768062097808,0.19159303,908.65,907.47,0.82144769]
[1768062098212,0.19159303,908.65,907.48,0.82144769]
[1768062102216,0.19159303,908.65,907.49,0.82144769]
[1768062102417,0.19159303,908.65,907.48,0.82144769]
[1768062103217,0.19159303,908.65,907.49,0.82144769]
[1768062103413,0.19159303,908.65,907.48,0.82144769]
[1768062104214,2.7555067,909.61,907.53,0.82144769]
[1768062104416,2.7555067,909.84,907.74,0.82144769]
[1768062104718,0.19157194,908.82,907.82,0.82144769]
[1768062105018,0.19149445,908.82,907.82,0.82144769]
[1768062105214,0.19149445,908.82,907.81,0.82144769]
[1768062106214,0.19149445,908.82,907.8,0.82144769]
[1768062110226,0.19149445,908.82,907.79,0.82144769]
[1768062111124,0.19149445,908.82,907.8,0.82144769]
[1768062112128,0.19149445,908.82,907.78,0.82144769]
[1768062113229,0.19149445,908.82,907.79,0.82144769]
[1768062114530,0.19149445,908.82,907.78,0.82144769]
[1768062115228,0.19149445,908.82,907.79,0.82144769]
[1768062116133,0.19149445,908.82,907.9,0.82144769]
[1768062117734,0.19149445,908.82,907.89,0.82144769]
[1768062118232,0.19149445,908.82,907.9,0.82144769]
[1768062119335,0.19149445,908.82,907.91,0.82144769]
[1768062119535,0.19149445,908.82,907.86,0.82144769]
[1768062120135,0.19149445,908.82,907.87,0.82144769]
[1768062121235,0.19149445,908.82,907.88,0.82144769]
[1768062122339,0.19149445,908.82,907.46,4.13775221]
[1768062122340,0.19149445,908.82,907.9,0.82144769]
[1768062123239,0.19149445,908.82,907.92,0.82144769]
[1768062124240,0.19149445,908.82,907.91,0.82144769]
[1768062125138,0.19149445,908.82,907.89,0.82144769]
[1768062126342,0.19149445,908.82,907.88,0.82144769]
[1768062128143,0.19149445,908.82,907.87,0.82144769]
[1768062129238,0.19149445,908.82,907.86,0.82144769]
[1768062130142,0.19149445,908.82,907.85,0.82144769]